Cogmind - Beta 13 @@@ ROGUE MODE // 2024.04.10 @ 19:36:46 Player: Arimel The Wise Result: Destroyed by YI-UF0 with YI-UF0's Doublenader Performance ------------- Evolutions (0) 0 Regions Visited (2) 400 Robots Destroyed (13) 65 Value Destroyed (417) 417 Prototype IDs (2) 40 Alien Tech Used (0) 0 Bonus (0) 0 TOTAL SCORE: 922 Bonus ------- None Cogmind --------- Core Integrity 0/250 Matter 261/300 Energy 100/100 System Corruption 0% Temperature Cool (0) Movement Treading (170) Location -10/Mines Parts ------- > --- POWER (1) -------- (None) > --- PROPULSION (2) --- Armored Treads Armored Treads > --- UTILITY (2) ------ Large Storage Unit Structural Scanner > --- WEAPON (2) ------- (None) > --- INVENTORY (15) --- Improved Ion Engine Improved Ion Engine Light Nuclear Core Light Nuclear Core Light Treads Light Treads Large Storage Unit High-capacity Matter Pod (150) Structural Scanner Structural Scanner Sensor Array Light Armor Plating Light Armor Plating Hacking Suite Peak State ------------ > --- POWER ------------ Improved Ion Engine > --- PROPULSION ------- Armored Treads Armored Treads > --- UTILITY ---------- Large Storage Unit Structural Scanner > --- WEAPON ----------- Minigun Grenade Launcher > --- INVENTORY -------- Improved Ion Engine Improved Ion Engine Light Nuclear Core Light Nuclear Core Light Treads Light Treads Large Storage Unit High-capacity Matter Pod Structural Scanner Structural Scanner Sensor Array Light Armor Plating Light Armor Plating Hacking Suite Assault Rifle [Rating: 16] Favorites ----------- Power Light Ion Engine Engine Light Ion Engine Propulsion Light Treads Treads Light Treads Leg Aluminum Leg Utility Large Storage Unit Device Structural Scanner Storage Large Storage Unit Weapon Light Assault Rifle Ballistic Gun Light Assault Rifle Launcher Grenade Launcher Build | -11 -10 -10 ------- Run | Yrd Mat Min Slots Evolved . | . . . Power . | . . . Propulsion . | . . . Utility . | . . . Weapon . | . . . Parts Attached 31 | 6 20 5 Power 6 | 1 5 . Engine 6 | 1 5 . Core . | . . . Reactor . | . . . Propulsion 9 | 2 5 2 Treads 7 | 2 3 2 Leg 2 | . 2 . Wheel . | . . . Hover . | . . . Flight . | . . . Utility 9 | 1 8 . Device 3 | . 3 . Storage 6 | 1 5 . Processor . | . . . Hackware . | . . . Protection . | . . . Artifact . | . . . Weapon 7 | 2 2 3 Energy Gun . | . . . Energy Cannon . | . . . Ballistic Gun 6 | 2 2 2 Ballistic Cannon . | . . . Launcher 1 | . . 1 Special Weapon . | . . . Impact Weapon . | . . . Slashing Weapon . | . . . Piercing Weapon . | . . . Special Melee Weapon . | . . . Unidentified Prototypes . | . . . Parts Lost 8 | . 4 4 Power 2 | . 1 1 Propulsion 1 | . 1 . Utility 1 | . 1 . Weapon 4 | . 1 3 Highest Loss Streak 4 | . 3 4 To Critical Strikes . | . . . Average Slot Usage (%) 95 | . 94 99 Engine 13 | . 13 13 Treads 25 | . 25 28 Leg 1 | . 2 . Device 11 | . 10 14 Storage 14 | . 14 14 Ballistic Gun 23 | . 27 14 Launcher 3 | . . 13 Naked Turns . | . . . Heaviest Build 34 | 13 31 34 Greatest Support 40 | 40 40 40 Greatest Overweight (x) 1 | . 1 . Average Overweight (x) . | . . . Largest Inventory Capacity 25 | 8 25 15 Average Capacity 13 | 6 12 15 Most Carried 15 | 4 15 15 Average Carried 12 | 2 11 14 Final Capacity 15 | 8 15 15 Final Carried 15 | 4 15 14 Class Distribution -------------------- 100% | Mutant Dominant Class ---------------- Mutant | -10/Materials Mutant | -10/Mines Resources | -11 -10 -10 ----------- Run | Yrd Mat Min Matter Collected 868 | 260 475 133 Remotely . | . . . Salvage Created 575 | . 575 . Parts 27 | . 27 . Haulers Intercepted 2 | . 2 . Recyclers Shooed . | . . . Parts Field Recycled . | . . . Retrieved Matter . | . . . Parts Self-Destructed . | . . . Prevented . | . . . Kills | -11 -10 -10 ------- Run | Yrd Mat Min Combat Hostiles Destroyed 11 | . 11 . Guns 11 | . 11 . Classes Destroyed 2 | . 2 . Hauler 2 | . 2 . Grunt 11 | . 11 . Best Kill Streak 3 | . 3 . Combat Bots Only 3 | . 3 . Max Kills in Single Turn 1 | . 1 . Gunslinging . | . . . Exploded . | . . . Melee . | . . . Uniques/NPCs Destroyed . | . . . Combat | -11 -10 -10 -------- Run | Yrd Mat Min Hostile Shots Fired 115 | . 78 37 Missed 33 | . 20 13 Damage Taken 1726 | . 752 974 Core 261 | . 102 159 Absorbed by Shields . | . . . Regen/Repaired (Parts) 205 | . 205 . Core Remaining (%) 100 | 100 . . Volleys Fired 60 | . 50 10 Largest 2 | . 2 2 Hottest 45 | . 40 45 Shots Fired 109 | . 96 13 Gun 109 | . 96 13 Cannon . | . . . Launcher . | . . . Special . | . . . Kinetic 109 | . 96 13 Thermal . | . . . Explosive . | . . . Electromagnetic . | . . . Robot Hit Streak 18 | . 18 5 Robot Miss Streak 3 | . 3 1 Penetration Max . | . . . Secondary Targets 1 | . 1 . Max Gunslinging Chain 1 | . 1 . Shots Hit Robots 78 | . 71 7 Core Hits 32 | . 32 . Critical Kills . | . . . Critical Parts Destroyed . | . . . Critical Strikes . | . . . Melee Attacks . | . . . Impact . | . . . Slashing . | . . . Piercing . | . . . Sneak Attacks . | . . . Combat Hostiles . | . . . Follow-up Attacks . | . . . Damage Inflicted 838 | . 721 117 Guns 838 | . 721 117 Cannons . | . . . Explosions . | . . . Melee . | . . . Ramming . | . . . Kinetic 838 | . 721 117 Thermal . | . . . Explosive . | . . . Electromagnetic . | . . . Impact . | . . . Slashing . | . . . Piercing . | . . . Highest Corruption . | . . . Average Corruption . | . . . Corruption Purged . | . . . Corruption Blocked . | . . . Overload Shots . | . . . Overflow Damage . | . . . Projectiles . | . . . Explosions . | . . . Melee . | . . . Knockbacks . | . . . Impact . | . . . Kinetic . | . . . Secondary . | . . . Self-Inflicted Damage . | . . . Shots . | . . . Rammed . | . . . Targets Rammed . | . . . Kicked . | . . . Crushed . | . . . Highest Temperature 18 | . 18 12 Average Temperature 6 | . 7 5 Received Heat Transfer 411 | . 411 . Siege Activations . | . . . Robots Corrupted . | . . . Combat Hostiles . | . . . Parts Fried . | . . . Impact Corruptions . | . . . Robots Melted . | . . . Combat Hostiles . | . . . Parts Melted . | . . . Heat Transferred . | . . . Parts Sabotaged . | . . . Parts Stolen . | . . . Parts Stripped . | . . . Power Chain Reactions . | . . . Alert | -11 -10 -10 ------- Run | Yrd Mat Min Peak Influence 136 | . 136 5 Initial 5 | . . 5 Average 39 | . 56 2 Maximum Alert Level . | . . . Low Security (%) 100 | 100 100 100 Level 1 . | . . . Level 2 . | . . . Level 3 . | . . . Level 4 . | . . . Level 5 . | . . . High Security . | . . . Max Security . | . . . Squads Dispatched 4 | . 3 1 Investigation 2 | . 1 1 Extermination . | . . . Reinforcement 2 | . 2 . Assault . | . . . Garrison . | . . . Intercept . | . . . Searches Triggered . | . . . Construction Impeded . | . . . Haulers Reinforced . | . . . Active Scanning Responses . | . . . Cargo Convoy Interrupts . | . . . Stealth | -11 -10 -10 --------- Run | Yrd Mat Min Distress Signals 1 | . 1 . Communications Jammed . | . . . Distress Signals . | . . . Times Spotted 36 | . 29 7 Peak Tracking Total 7 | . 5 7 Tactical Retreats 1 | . 1 . Traps | -11 -10 -10 ------- Run | Yrd Mat Min Traps Triggered 2 | . 2 . Indirectly . | . . . Trap Hack Attempts . | . . . Triggered . | . . . Disarmed . | . . . Reprogrammed . | . . . Reused . | . . . Traps Extracted . | . . . Installed . | . . . Triggered . | . . . Machines | -11 -10 -10 ---------- Run | Yrd Mat Min Machines Disabled . | . . . Max in Single Turn . | . . . Machines Repaired . | . . . Machines Dismantled . | . . . Machines Sabotaged . | . . . Overloaded Fab Kills . | . . . Hacking | -11 -10 -10 --------- Run | Yrd Mat Min Machines Accessed 10 | . 9 1 Terminals 7 | . 7 . Fabricators . | . . . Repair Stations 1 | . 1 . Recycling Units 1 | . 1 . Scanalyzers . | . . . Garrison Access . | . . . Total Hacks 35 | . 34 1 Successful 24 | . 23 1 Failed 11 | . 11 . Catastrophic . | . . . Database Lockouts . | . . . Manual 9 | . 9 . Terminals 28 | . 28 . Fabricators . | . . . Repair Stations 4 | . 4 . Recycling Units 2 | . 2 . Scanalyzers . | . . . Garrison Access . | . . . Terminal Hacks 12 | . 11 1 Prototype ID Bank 1 | . 1 . Open Door 1 | . . 1 Branch Access Points 1 | . 1 . Terminal Index 1 | . 1 . Alert Level 3 | . 3 . Locate Traps 3 | . 3 . Recall Investigation 1 | . 1 . Hauler Manifests 1 | . 1 . Fabricator Hacks . | . . . Repair Station Hacks 4 | . 4 . Scan Component 2 | . 2 . Repair 2 | . 2 . Recycling Unit Hacks 2 | . 2 . Report Inventory 1 | . 1 . Retrieve Components 1 | . 1 . Scanalyzer . | . . . Garrison Access Hacks . | . . . Unauthorized Hacks 6 | . 6 . Terminals 6 | . 6 . Botnet 6 | . 6 . Fabricators . | . . . Repair Stations . | . . . Recycling Units . | . . . Scanalyzers . | . . . Garrison Access . | . . . Data Cores Recovered . | . . . Used . | . . . Hacking Detections 7 | . 7 . Full Trace Events 1 | . 1 . Feedback Events . | . . . Feedback Blocked . | . . . Robot Schematics Acquired . | . . . Robots Built . | . . . Authchips . | . . . Time . | . . . Total Robot Build Rating . | . . . Part Schematics Acquired . | . . . Parts Built . | . . . Authchips . | . . . Time . | . . . Total Part Build Rating . | . . . Parts Repaired 2 | . 2 . Time 52 | . 52 . Parts Recycled . | . . . Recycled Matter . | . . . Retrieved Matter . | . . . Retrieved Components 10 | . 10 . Parts Scanalyzed . | . . . Part Schematics Acquired . | . . . Parts Damaged . | . . . Bothacking | -11 -10 -10 ------------ Run | Yrd Mat Min Used RIF Installer . | . . . Robots Hacked . | . . . Non-combat . | . . . Combat . | . . . Robot Hacks Applied . | . . . Relay Couplers Released . | . . . Fabnet Peak Effective % . | . . . Robots Rewired . | . . . Allies Hacked . | . . . Hacks Repelled . | . . . Allies | -11 -10 -10 -------- Run | Yrd Mat Min Total Allies . | . . . Largest Group . | . . . Highest-Rated Group . | . . . Highest-Rated Ally . | . . . Total Orders . | . . . Ally Attacks . | . . . Total Damage . | . . . Kills . | . . . Allies Corrupted . | . . . Allies Melted . | . . . Intel | -11 -10 -10 ------- Run | Yrd Mat Min Robot Analysis Total . | . . . Derelict Logs Recovered 1 | . . 1 Drone Launches . | . . . Drone Recoveries . | . . . Exploration | -11 -10 -10 ------------- Run | Yrd Mat Min Turns Passed 2543 | 82 1738 723 Spaces Moved 1315 | 45 870 400 Core 2 | 2 . . Treads 1253 | 43 810 400 Legs 60 | . 60 . Wheels . | . . . Hover . | . . . Flight . | . . . Fastest Speed 50 | 50 160 160 Average Speed 165 | 155 165 168 Slowest Speed 240 | 160 240 170 Overloaded Moves . | . . . Propulsion Burnouts . | . . . Robots Hopped . | . . . Cave-ins Triggered . | . . . Exploration Rate (%) 57 | 6 97 69 Regions Visited 2 Branch Regions 1 Pre-discovered Areas . | . . . Known Exits Taken 1 | . 1 . Unknown Exits Taken 1 | 1 . . Scrap Searched 1 | . . 1 Spaces Dug . | . . . Terrain Destroyed . | . . . Melee . | . . . Projectile . | . . . AOE . | . . . Terrain Rammed . | . . . Walls Destroyed . | . . . Machines Disabled . | . . . Actions | -11 -10 -10 --------- Run | Yrd Mat Min Total 1586 | 54 1092 440 Wait 125 | . 109 16 Move 1313 | 44 869 400 Hop . | . . . Pick Up 33 | 4 26 3 Fast Attach 12 | 6 5 1 Attach 5 | . 4 1 Detach . | . . . Swap 14 | . 11 3 Drop 24 | . 18 6 Fire 60 | . 50 10 Melee . | . . . Ram . | . . . Kick . | . . . Crush . | . . . Escape Stasis . | . . . Rewire . | . . . Trap . | . . . Miscellaneous . | . . . Route ------- -11/Scrapyard -10/Materials (discovered 5 exits: [*Mat x3] / *Min x2) -10/Mines (discovered 2 exits: [*Mat] / [*Sub]) History --------- Turn | Location | Event 2 | -11/Scrapyard | Met Revision 17 12 | -11/Scrapyard | Discovered new exit (range 14) 83 | -11/Scrapyard | Entered Materials 315 | -10/Materials | Build established: Mutant 337 | -10/Materials | Discovered new exit (range 9) 576 | -10/Materials | Identified exit to Mines 590 | -10/Materials | Discovered new exit (range 16) 807 | -10/Materials | Discovered new exit (range 12) 1033 | -10/Materials | Lost 3 parts (1p1n1u) 1336 | -10/Materials | Repaired Lgt. Treads 1365 | -10/Materials | Repaired Lgt. Assault Rifle 1561 | -10/Materials | Discovered new exit (range 8) 1821 | -10/Materials | Entered Mines 1822 | -10/Mines | YI-UF0 nonchalantly dropped a Grenade Launcher on the ground 1893 | -10/Mines | Discovered new exit (range 14) 1921 | -10/Mines | Met a Derelict shopkeep closing up shop 2006 | -10/Mines | Learned Materials emergency access door positions 2197 | -10/Mines | Found a hidden stash of uninstalled traps 2252 | -10/Mines | Assembled infested the area 2257 | -10/Mines | Assisted by a Guerilla fighting off Assembled 2475 | -10/Mines | Discovered new exit (range 10) 2508 | -10/Mines | Core integrity fell below 50% 2536 | -10/Mines | Core integrity fell below 20% 2544 | -10/Mines | Destroyed by YI-UF0 with YI-UF0's Doublenader Last Messages --------------- E3-KHN(h) heat spikes uncontrollably. E3-KHN(h) critical meltdown. as-14203 destroyed. T-07 Excavator is excavating. EXIT=FOUND The unstable cave ceiling collapses. Grenade Launcher destroyed. The unstable cave ceiling collapses. K-01 Serf collects debris. The unstable cave ceiling collapses. K-01 Serf collects debris. The unstable cave ceiling collapses. Assault Rifle destroyed. The unstable cave ceiling collapses. K-01 Serf collects debris. The unstable cave ceiling collapses. Imp. Ion Engine destroyed. The unstable cave ceiling collapses. Minigun destroyed. The unstable cave ceiling collapses. Map ----- +----------------------------------------------------+ | #### ##????????????????????????????????? | | ######## ### ##????????????????????????????????? | | ######## ### ###????????????????????????????????? | | #?????## ### ####????????????????????????????????? | | #?????## ###?????????????????????????????????? | | #?????###### ##??????????????????????????????????? | | #?????###### ##??????????????????????????????????? | | #######?#### ##??????????????????????????????????? | | ########## ##??????????????????????????????????? | | ## ##### ##?????????????????? ???????????????? | | # #### ###?????????????????? ??????????????? | | ### ###??????????????????! ##???????????? | | ##???????????????????% ####??????????? | | ##??????????????????? ##??????????? | | #####??????????????????? ??????????? | | #####??????????????????? ??????????? | | #############??????????? ####??????????? | | ###############?????????? ??????????? | | ! ##### #####?????? ????????????? | | !== #### ####?????? ## # ## ?????????? | | ## #### """ ###### ## #####?????????? | | #### #### """ ######### ###????????? | | ##### """ ####????????? | | #?### # # ##????????? | | ??### ######## # # ######????? | | ?### ####### @ # #######???? | | ### ##???## # g # ## ###???? | | ## ###???## ## ## ##???? | | % ###??##< ### ] ###??? | | ##???########## ###??? | | #### ###???#######?## # ###?? | | #########???????????###### ## # ##?? | | ??#####?????????????########## ##?? | | ????????????????????????############ ###?? | | ????????????????????????????######### ## ####?? | | ??????????????????????????????????#############??? | | ???????????????????????????????????###########???? | | ?????????????????????????????????????????????????? | | | | | | | | | | | | | | | | | | | | | | | | | +----------------------------------------------------+ Best States ------------- Heat Dissipation 25 Energy Generation 12 Energy Capacity 265 Matter Stores 300 Matter Capacity 300 Sight Range 16 Robot Scan Range 14 Terrain Scan Density 10 Evasion (%) 40 Recoil Reduction 2 Item Schematics ----------------- None Robot Schematics ------------------ None Fabricated ------------ Nothing Alien Tech Used ----------------- None Achievements -------------- None Challenges ------------ None Game ------ Seed LatentGatlingDoublenader Manual? 0 Play Time 00:28:06 Cumulative 9.4 hours Start 2024.04.10 @ 19:11:11 End 2024.04.10 @ 19:36:46 Sessions 1 Manual Loads 0 Difficulty Rogue Special Mode None Game No. 14 Rogue 14 Adventurer 0 Explorer 0 Win Type - Total 0 Types 0/0/0/0/0/0/0/0/0 Lore% 16 Gallery% 13 Achievement% 16 Wizard Run 0 Options --------- Layout 1 ASCII 0 Keyboard 0 Movement Numpad Keybinds 0 Fullscreen 2 Font 24/Smallcaps Map View 50x35 Zoom Use 0% Tactical HUD 0 Map Filters NONE Filters NONE Steam 1 RUN: 3cb87344-daf1-4e03-b189-395e408e9fd5